Workbook

Sheet System (hidden)
A1: Форма | D1: Атрибуты | G1: Таблицы | I1: ORDERS | J1: NAME | K1: COL_COUNT | L1: CODE_COL | M1: ROW_COUNT | N1: VAL_TYPE | O1: Колонки | Q1: TABLE | R1: ORDERS | S1: NAME | T1: INPUT_MASK | U1: EDIT | V1: VAL_LEN | W1: COL_TYPE | X1: EXPORT_ORDER | Y1: PROPERTY
A2: CODE_FORM | B2: фхд_2017 | D2: REPORTS_ATR_MODIFY_D | E2: 1 | G2: COUNT_TABLE | H2: 2 | I2: 1 | J2: ФХД 1,2,5,6 раздел | K2: 5 | L2: 1 | M2: 0 | Q2: 1 | R2: 1 | S2: Ключ | U2: 0 | V2: 4 | W2: 1 | X2: 1 | Y2: 0
A3: NAME_FORM | B3: ПЛАН финансово-хозяйственной деятельности. Период действия формы: c 01.01.2017 | I3: 2 | J3: ФХД 3,4 раздел | K3: 13 | L3: 1 | M3: 0 | Q3: 1 | R3: 2 | S3: № п/п | U3: 0 | V3: 8 | W3: 1 | X3: 2 | Y3: 0
A4: DATE_FORM | B4: 01.01.2017 | Q4: 1 | R4: 3 | S4: Наименование показателя | U4: 0 | V4: 75 | W4: 1 | X4: 3 | Y4: 0
A5: DEP_CODE | B5: 101 | Q5: 1 | R5: 4 | S5: код строки | U5: 0 | V5: 10 | W5: 1 | X5: 4 | Y5: 0
A6: ORG_NAME | B6: Распорядитель Управление образования и молодежной политики администрации Уссурийского городского округа | Q6: 1 | R6: 5 | S6: Сумма | U6: 1 | V6: 2 | W6: 0 | X6: 5 | Y6: 0
A7: BUDG | B7: УС | Q7: 2 | R7: 1 | S7: Ключ | U7: 0 | V7: 5 | W7: 1 | X7: 1 | Y7: 8
A8: BUDG_NAME | B8: Бюджет Уссурийского городского округа | Q8: 2 | R8: 2 | S8: Наименование показателя | U8: 0 | V8: 143 | W8: 1 | X8: 2 | Y8: 0
A9: PERIOD_Y | B9: 2018 | Q9: 2 | R9: 3 | S9: Код строки | U9: 0 | V9: 10 | W9: 1 | X9: 3 | Y9: 0
A10: PERIOD_Q | B10: 4 | Q10: 2 | R10: 4 | S10: код БК | U10: 0 | V10: 8 | W10: 1 | X10: 4 | Y10: 0
A11: PERIOD_M | B11: 12 | Q11: 2 | R11: 5 | S11: / ВСЕГО закупки 2017г | U11: 1 | V11: 2 | W11: 0 | X11: 5 | Y11: 0
A12: BEGIN_DATE | B12: 31.01.2017 | Q12: 2 | R12: 6 | S12: / ВСЕГО закупки 2018г | U12: 1 | V12: 2 | W12: 0 | X12: 6 | Y12: 0
A13: PERIOD_TYPE | B13: 4 | Q13: 2 | R13: 7 | S13: / ВСЕГО закупки 2019г | U13: 1 | V13: 2 | W13: 0 | X13: 7 | Y13: 0
A14: PERIOD_NUMBER | B14: 1 | Q14: 2 | R14: 8 | S14: ВСЕГО / 44фз 2017г | U14: 1 | V14: 2 | W14: 0 | X14: 8 | Y14: 0
A15: PERIOD | Q15: 2 | R15: 9 | S15: субсидия МЗ/ 44фз 18г | U15: 1 | V15: 2 | W15: 0 | X15: 9 | Y15: 0
A16: USER | B16: use | Q16: 2 | R16: 10 | S16: субсидия БК 78.1/ 44фз 19г | U16: 1 | V16: 2 | W16: 0 | X16: 10 | Y16: 0
A17: WEB | Q17: 2 | R17: 11 | S17: субсидии кап.вложения / 223фз 2017г | U17: 1 | V17: 0 | W17: 0 | X17: 11 | Y17: 0
A18: USERPROXY | Q18: 2 | R18: 12 | S18: поступл.от оказ услуг / 223фз 2018г | U18: 1 | V18: 2 | W18: 0 | X18: 12 | Y18: 0
A19: VERSION_FORM | B19: 0 | Q19: 2 | R19: 13 | S19: гранты / 223фз 2019г | U19: 1 | V19: 2 | W19: 0 | X19: 13 | Y19: 0
A20: PROXY
A21: PORT
A22: SQL_SERVER | B22: 192.168.1.2
A23: BASE | B23: svod_2014
A24: Заголовок
A27: Ячейка
A31: 1 квартал | B31: 1
A32: 2 квартал | B32: 2
A33: 3 квартал | B33: 3
A34: 4 квартал | B34: 4
A36: Январь | B36: 1
A37: Февраль | B37: 2
A38: Март | B38: 3
A39: Апрель | B39: 4
A40: Май | B40: 5
A41: Июнь | B41: 6
A42: Июль | B42: 7
A43: Август | B43: 8
A44: Сентябрь | B44: 9
A45: Октябрь | B45: 10
A46: Ноябрь | B46: 11
A47: Декабрь | B47: 12

Sheet Реквизиты
B1: Excel-клиент v 1.4
B2: Форма:фхд_2017 ПЛАН финансово-хозяйственной деятельности. Период действия формы: c 01.01.2017
B24: Атрибуты | C24: Дата последнего изменения

Sheet Таблица 1
A1: ФХД 1,2,5,6 раздел
A2: 121216
A3: Ключ | B3: № п/п | C3: Наименование показателя | D3: код строки | E3: Сумма
A4: 1 | B4: 2 | C4: 3 | D4: 4 | E4: 5
A5: 900 | C5: I. Сведения о деятельности учреждения | E5: 0
A6: 1000 | B6: 1 | C6: Цели и виды деятельности | E6: 0
A7: 1100 | B7: 2 | C7: Перечень услуг (работ) | E7: 0
A8: 1200 | B8: 3 | C8: Общая балансовая стоимость НЕДВИЖИМОГО мун. имущества | E8: 32373778.81
A9: 1300 | C9: на праве оперативного управления | E9: 32373778.81
A10: 1400 | C10: за счет выделенных средств | E10: 0
A11: 1500 | C11: за счет доходов (от иной деятельности) | E11: 0
A12: 1600 | B12: 4 | C12: Общая балансовая стоимость ДВИЖИМОГО мун. имущества | E12: 12461980.14
A13: 1700 | C13: особо ценное имущество | E13: 4670449.08
A14: 1800 | C14: ll. Показатели финансового состояния | E14: 0
A15: 1900 | E15: 0
A16: 2000 | C16: (запрет) | E16: 0
A17: 2100 | B17: № п/п | C17: наименование показателя / сумма | E17: 0
A18: 2200 | B18: 1 | C18: Нефинансовые активы всего | E18: 88514662.46
A19: 2300 | B19: 1.1. | C19: из них : недвижимое, всего | E19: 32373778.81
A20: 2400 | B20: 1.1.1. | C20: в том числе: остаточная стоимость | E20: 19683183.72
A21: 2500 | B21: 1.2. | C21: особо ценное движимое, всего | E21: 4670449.08
A22: 2600 | B22: 1.2.1. | C22: в том числе: остаточная стоимость | E22: 149547.84
A23: 2700 | B23: 2 | C23: Финансовые активы всего | E23: -87304198.2
A24: 2800 | B24: 2.1. | C24: из них: денежные средства, всего | E24: 385703.57
A25: 2900 | B25: 2.1.1. | C25: в том числе: денежные срведства на счетах | E25: 385703.57
A26: 3000 | B26: 2.2. | C26: денежные средства на депозитах в кредитных организациях | E26: 0
A27: 3100 | B27: 2.3. | C27: иные финансовые документы | E27: 0
A28: 3200 | B28: 2.4. | C28: дебиторская задолженность по доходам | E28: 69409.56
A29: 3300 | B29: 2.5. | C29: дебиторская задолженность по расходам | E29: 70787.71
A30: 3400 | B30: 3 | C30: Обязательства всего | E30: 120100.6
A31: 3500 | B31: 3.1. | C31: из них: долговые обязательства | E31: 0
A32: 3600 | B32: 3.2. | C32: кредиторская задолженность | E32: 67848.17
A33: 3700 | B33: 3.2.1. | C33: в том числе: просроченная кредиторская задолж. | E33: 0
A34: 3800 | C34: V Сведения о средствах, поступивших во временное распоряжение | E34: 0
A35: 3900 | E35: 0
A36: 4000 | E36: 0
A37: 4100 | C37: наименование показателя / код строки / сумма | E37: 0
A38: 4200 | C38: Остаток средств на начало года | D38: 010 | E38: 0
A39: 4300 | C39: Остаток средств на конец года | D39: 020 | E39: 0
A40: 4400 | C40: Поступление | D40: 030 | E40: 0
A41: 4500 | C41: Выбытие | D41: 040 | E41: 0
A42: 4600 | C42: VI Справочная информация | E42: 0
A43: 4700 | C43: наименование показателя / код строки / сумма | E43: 0
A44: 4800 | C44: Объем публичных обязательств, всего | D44: 010 | E44: 419723
A45: 4900 | C45: Объем бюджетных инвестиций (переданные полномочия), всего | D45: 020 | E45: 0
A46: 5000 | C46: Объем средств, поступивших во временное распоряжение, всего | D46: 030 | E46: 0

Sheet Таблица 2
A1: ФХД 3,4 раздел
A3: Ключ | B3: Наименование показателя | C3: Код строки | D3: код БК | E3: не заполняется / ВСЕГО закупки 2017г | F3: не заполняется / ВСЕГО закупки 2018г | G3: не заполняется / ВСЕГО закупки 2019г | H3: ВСЕГО / 44фз 2017г | I3: субсидия МЗ / 44фз 18г | J3: субсидия БК 78.1 / 44фз 19г | K3: субсидии кап.вложения / 223фз 2017г | L3: поступл.от оказ услуг / 223фз 2018г | M3: гранты / 223фз 2019г | N3: заполняется только 2018
A4: 1 | B4: 2 | C4: 3 | D4: 4 | E4: 5 | F4: 6 | G4: 7 | H4: 8 | I4: 9 | J4: 10 | K4: 11 | L4: 12 | M4: 13
A5: 1000 | B5: III. Показатели по поступлениям и выплатам | E5: 0 | F5: 0 | G5: 0 | H5: 0 | I5: 0 | J5: 0 | K5: 0 | L5: 0 | M5: 0
A6: 1100 | B6: на 1 января 2017г. | E6: 0 | F6: 0 | G6: 0 | H6: 0 | I6: 0 | J6: 0 | K6: 0 | L6: 0 | M6: 0
A7: 1200 | E7: 0 | F7: 0 | G7: 0 | H7: 0 | I7: 0 | J7: 0 | K7: 0 | L7: 0 | M7: 0
A8: 1300 | E8: 0 | F8: 0 | G8: 0 | H8: 0 | I8: 0 | J8: 0 | K8: 0 | L8: 0 | M8: 0
A9: 1400 | E9: 0 | F9: 0 | G9: 0 | H9: 0 | I9: 0 | J9: 0 | K9: 0 | L9: 0 | M9: 0
A10: 1500 | E10: 0 | F10: 0 | G10: 0 | H10: 0 | I10: 0 | J10: 0 | K10: 0 | L10: 0 | M10: 0
A11: 1600 | B11: ПОСТУПЛЕНИЯ ОТ ДОХОДОВ, ВСЕГО: | C11: 100 | D11: Х | E11: 0 | F11: 0 | G11: 0 | H11: =H12+H13+H14+H15+H16+H17 -> 54589807.34 | I11: =I13 -> 42466398.45 | J11: =J16 -> 9877322.82 | K11: =K16 -> 0 | L11: =L13+L17+L12+L15+L14 -> 2246086.07 | M11: =M13+M14+M15+M17 -> 0
A12: 1700 | B12: в том числе: доходы от собственности | C12: 110 | E12: 0 | F12: 0 | G12: 0 | H12: =L12 -> 0 | I12: 0 | J12: 0 | K12: 0 | M12: 0
A13: 1800 | B13: доходы от оказания услуг, работ | C13: 120 | E13: 0 | F13: 0 | G13: 0 | H13: =I13+L13+M13 -> 42466398.45 | I13: 42466398.45 | J13: 0 | K13: 0
A14: 1900 | B14: доходы от штрафов, пеней иных сумм принудительного изъятия | C14: 130 | E14: 0 | F14: 0 | G14: 0 | H14: =M14+L14 -> 18648.2 | I14: 0 | J14: 0 | K14: 0 | L14: 18648.2
A15: 2000 | B15: безвозм.поступл. от наднац.орг.,правит.иностр.госуд.,международ.финан.организ. | C15: 140 | E15: 0 | F15: 0 | G15: 0 | H15: =M15+L15 -> 0 | I15: 0 | J15: 0 | K15: 0 | L15: 0
A16: 2100 | B16: иные субсидии, предоставляемые из бюджета | C16: 150 | E16: 0 | F16: 0 | G16: 0 | H16: =J16+K16 -> 9877322.82 | I16: 0 | J16: 9877322.82 | L16: 0 | M16: 0
A17: 2200 | B17: прочие доходы | C17: 160 | E17: 0 | F17: 0 | G17: 0 | H17: =L17+M17 -> 2227437.87 | I17: 0 | J17: 0 | K17: 0 | L17: =L18+L19+L20+L21 -> 2227437.87 | M17: =M18+M19+M20+M21 -> 0
A18: 2300 | B18: в том числе род.плата | C18: 161 | E18: 0 | F18: 0 | G18: 0 | H18: =L18+M18 -> 1336203.07 | I18: 0 | J18: 0 | K18: 0 | L18: 1336203.07
A19: 2400 | B19: платные услуги | C19: 162 | E19: 0 | F19: 0 | G19: 0 | H19: =L19+M19 -> 855263 | I19: 0 | J19: 0 | K19: 0 | L19: 855263
A20: 2500 | B20: добровольные пожертвования | C20: 163 | E20: 0 | F20: 0 | G20: 0 | H20: 35971.8 | I20: 0 | J20: 0 | K20: 0 | L20: 35971.8
A21: 2600 | B21: доходы от операций с активами | C21: 180 | E21: 0 | F21: 0 | G21: 0 | H21: 0 | I21: 0 | J21: 0 | K21: 0
A22: 2700 | B22: ВЫПЛАТЫ ПО РАСХОДАМ, ВСЕГО: | C22: 200 | D22: Х | E22: 0 | F22: 0 | G22: 0 | H22: =H23+H27+H32+H33+H34+H41 -> 55019614.9 | I22: =I23+I27+I32+I33+I34+I41 -> 42466398.45 | J22: 9877322.82 | K22: 0 | L22: 2675893.63 | M22: 0
A23: 2800 | B23: в том числе, на выплаты персоналу всего: | C23: 210 | E23: 0 | F23: 0 | G23: 0 | H23: =H24 -> 33778278.52 | I23: =I24 -> 33006613 | J23: 0 | K23: 0 | L23: 771665.52 | M23: 0
A24: 2900 | B24: из них:оплата труда и начисл.на выплаты по опл.тр. | C24: 211 | E24: 0 | F24: 0 | G24: 0 | H24: =H25+H26 -> 33778278.52 | I24: =I25+I26 -> 33006613 | J24: 0 | K24: 0 | L24: 771665.52 | M24: 0
A25: 3000 | B25: из них: оплата труда: | D25: 111 | E25: 0 | F25: 0 | G25: 0 | H25: =I25+J25+K25+L25+M25 -> 25794859.44 | I25: 25362656.37 | L25: 432203.07
A26: 3100 | B26: начисления на выплаты по оплате труда | D26: 119 | E26: 0 | F26: 0 | G26: 0 | H26: =I26+J26+K26+L26+M26 -> 7983419.08 | I26: 7643956.63 | L26: 339462.45
A27: 3200 | B27: Социальные или иные выплаты населению, всего | C27: 220 | E27: 0 | F27: 0 | G27: 0 | H27: =H28+H29+H30+H31 -> 15695.6 | I27: =I28+I29+I30+I31 -> 11070 | J27: 0 | K27: 0 | L27: 4625.6 | M27: 0
A28: 3300 | B28: из них: прочие выплаты | D28: 112 | E28: 0 | F28: 0 | G28: 0 | H28: =I28+J28+K28+L28+M28 -> 15695.6 | I28: 11070 | L28: 4625.6
A29: 3400 | B29: прочие расходы (иные выплаты персоналу учрежд.,за исключ.фонда опл.труда) | D29: 112 | E29: 0 | F29: 0 | G29: 0 | H29: =I29+J29+K29+L29+M29 -> 0
A30: 3500 | B30: транспортные услуги | D30: 112 | E30: 0 | F30: 0 | G30: 0 | H30: 0
A31: 3600 | B31: прочие услуги | D31: 112 | E31: 0 | F31: 0 | G31: 0 | H31: 0
A32: 3700 | B32: Уплата налогов, сборов и иных платежей, всего | C32: 230 | E32: 0 | F32: 0 | G32: 0 | H32: =I32+J32+K32+L32+M32 -> 0
A33: 3800 | B33: Безвозмездные перечисления организациям | C33: 240 | E33: 0 | F33: 0 | G33: 0 | H33: =I33+J33+K33+L33+M33 -> 0
A34: 3900 | B34: Прочие расходы(кроме расх.на закупку товаров,работ,услуг) | C34: 250 | E34: 0 | F34: 0 | G34: 0 | H34: =H35+H36+H37+H38+H39+H40 -> 1197871.12 | I34: =I35+I36+I37+I38+I39+I40 -> 1063722 | J34: 131799.12 | K34: 0 | L34: 2350 | M34: 0
A35: 4000 | B35: прочие расходы(питание спортсменов) | D35: 113 | E35: 0 | F35: 0 | G35: 0 | H35: =I35+J35+K35+L35+M35 -> 0
A36: 4100 | B36: прочие расходы(трудоустройство несовершен.граждан(трудовые бригады) | D36: 360 | E36: 0 | F36: 0 | G36: 0 | H36: =I36+J36+K36+L36+M36 -> 131799.12 | J36: 131799.12
A37: 4200 | B37: прочие расходы(возмещение истцу расх. на гос.пошлину и уплата неустойки, оплюрасходов на экспертизу суд.актом,возмещ.ущерба должн.лицом по суду | D37: 831 | E37: 0 | F37: 0 | G37: 0 | H37: 0
A38: 4300 | B38: прочие расходы(уплата налога на имущ.организаций,земельного налога) | D38: 851 | E38: 0 | F38: 0 | G38: 0 | H38: 1063722 | I38: 1063722
A39: 4400 | B39: прочие расходы(уплата трансп.налога,госпошлина учр.-ответчика по реш.суда) | D39: 852 | E39: 0 | F39: 0 | G39: 0 | H39: 2350 | I39: 0 | L39: 2350
A40: 4500 | B40: уплата иных платежей(в т.ч. за несвоевремен.упл.налогов и сборов,плата за загрязн.окр.среды) | D40: 853 | E40: 0 | F40: 0 | G40: 0 | H40: 0 | I40: 0
A41: 4600 | B41: Расходы на закупку товаров,работ,услуг,всего | C41: 260 | D41: Х | E41: 0 | F41: 0 | G41: 0 | H41: =H42+H45+H48 -> 20027769.66 | I41: =I42+I45+I48 -> 8384993.45 | J41: 9745523.7 | K41: 0 | L41: 1897252.51 | M41: 0
A42: 4700 | B42: Закупка товаров,работ,услуг на капит.ремонт гос.(мун.) имущества | C42: 261 | E42: 0 | F42: 0 | G42: 0 | H42: =I42+J42+K42+L42+M42 -> 7379974 | I42: =I43+I44 -> 0 | J42: =J43+J44 -> 7379974 | K42: 0 | L42: 0 | M42: 0
A43: 4800 | B43: услуги по содержанию имущества | D43: 243 | E43: 0 | F43: 0 | G43: 0 | H43: =I43+J43+K43+L43+M43 -> 7379974 | I43: 0 | J43: 7379974
A44: 4900 | B44: прочие услуги | D44: 243 | E44: 0 | F44: 0 | G44: 0 | H44: =I44+J44+K44+L44+M44 -> 0
A45: 5000 | B45: Затраты на строит.объектов недвиж.имущ. гос.(мун.) учрежд. | C45: 262 | E45: 0 | F45: 0 | G45: 0 | H45: =H47+H46 -> 0 | I45: =I47+I46 -> 0 | J45: 0 | K45: 0 | L45: 0 | M45: 0
A46: 5100 | B46: прочие услуги | D46: 407 | E46: 0 | F46: 0 | G46: 0 | H46: =I46+J46+K46+L46+M46 -> 0
A47: 5110 | B47: приобретение основных средств | D47: 407 | E47: 0 | F47: 0 | G47: 0 | H47: =I47+J47+K47+L47+M47 -> 0
A48: 5200 | B48: Прочая закупка товаров,работ и услуг для обеспечен.гос.(мун.) нужд | C48: 263 | E48: 0 | F48: 0 | G48: 0 | H48: =I48+J48+K48+L48+M48 -> 12647795.66 | I48: =I49+I50+I51+I52+I53+I54+I55+I56+I57 -> 8384993.45 | J48: 2365549.7 | K48: 0 | L48: 1897252.51 | M48: =M49+M50+M51+M52+M53+M54+M55+M56+M57 -> 0
A49: 5300 | B49: услуги связи | D49: 244 | E49: 0 | F49: 0 | G49: 0 | H49: =I49+J49+K49+L49+M49 -> 96449.05 | I49: 58880.05 | L49: 37569
A50: 5400 | B50: транспортные услуги | D50: 244 | E50: 0 | F50: 0 | G50: 0 | H50: 1135600 | I50: 1135600
A51: 5500 | B51: коммунальные услуги | D51: 244 | E51: 0 | F51: 0 | G51: 0 | H51: 3985820.53 | I51: 3950936.53 | L51: 34884
A52: 5600 | B52: арендная плата за пользование имущества | D52: 244 | E52: 0 | F52: 0 | G52: 0 | H52: 0
A53: 5700 | B53: услуги по содержанию имущества | D53: 244 | E53: 0 | F53: 0 | G53: 0 | H53: 558455.64 | I53: 497625 | J53: 20638.64 | L53: 40192
A54: 5800 | B54: прочие услуги | D54: 244 | E54: 0 | F54: 0 | G54: 0 | H54: 413140.47 | I54: 336381.47 | J54: 48000 | L54: 28759
A55: 5900 | B55: прочие расходы (призы,кубки) | D55: 244 | E55: 0 | F55: 0 | G55: 0 | H55: 396 | I55: 396
A56: 6000 | B56: приобретение основных средств | D56: 244 | E56: 0 | F56: 0 | G56: 0 | H56: 1779830.4 | I56: 1613988.4 | L56: 165842
A57: 6100 | B57: приобретение материальных запасов | D57: 244 | E57: 0 | F57: 0 | G57: 0 | H57: =I57+J57+K57+L57+M57 -> 4678103.57 | I57: 791186 | J57: 2296911.06 | K57: 0 | L57: 1590006.51
A58: 6200 | B58: Поступление финансовых активов, всего | C58: 300 | D58: х | E58: 0 | F58: 0 | G58: 0 | H58: =I58+J58+K58+L58+M58 -> 0
A59: 6300 | B59: из них: увеличение остатков средств | C59: 310 | E59: 0 | F59: 0 | G59: 0 | H59: =I59+J59+K59+L59+M59 -> 0
A60: 6400 | B60: Прочие поступления | C60: 320 | E60: 0 | F60: 0 | G60: 0 | H60: 0
A61: 6500 | B61: Выбытие финансовых активов, всего | C61: 400 | E61: 0 | F61: 0 | G61: 0 | H61: 0
A62: 6600 | B62: из них: уменьшение остатков средств | C62: 410 | E62: 0 | F62: 0 | G62: 0 | H62: 0
A63: 6700 | B63: прочие выбытия | C63: 420 | E63: 0 | F63: 0 | G63: 0 | H63: 0
A64: 6800 | B64: Остаток средств на начало года | C64: 500 | D64: х | E64: 0 | F64: 0 | G64: 0 | H64: =I64+J64+K64+L64+M64 -> 429807.56 | L64: 429807.56
A65: 6900 | B65: Остаток средств на конец года | C65: 600 | D65: х | E65: 0 | F65: 0 | G65: 0 | H65: 0 | I65: 0 | J65: 0 | K65: 0 | L65: 0 | M65: 0
A66: 7000 | B66: IV. Показатели по поступлениям и выплатам учреждения | E66: ВСЕГО закупки 2018г | F66: ВСЕГО закупки 2019г | G66: ВСЕГО закупки 2020г | H66: 44фз 2018г | I66: 44фз 2019г | J66: 44фз 2020г | K66: 223фз 2018г | L66: / 223фз 2019г | M66: 223фз 2020г | N66: заполняется 2018, 2019, 2020
A67: 7100 | B67: на 1 января 2017 года
A68: 7200
A69: 7300
A70: 7400
A71: 7500
A72: 7600 | B72: Выплаты по расходам на закупку товаров,рабт,услуг,всего: | C72: 0001 | D72: х | E72: =H72+K72 -> 20027769.66 | F72: =I72+L72 -> 11691220.41 | G72: 11865469.45 | H72: =H41 -> 20027769.66 | I72: =I73+I74 -> 11691220.41 | J72: =J73+J74 -> 11865469.45
A73: 7700 | B73: в том числе:на оплату контрактов,закюч. до начала очередного фин.года: | C73: 1001 | D73: х | E73: =H73+K73 -> 848792.45 | F73: 848792.45 | G73: 848792.45 | H73: 848792.45 | I73: 848792.45 | J73: 848792.45
A74: 7800 | B74: на закупку товаров,работ,услуг по году начала закупки: | C74: 2001 | E74: 19178977.21 | F74: 10842427.96 | G74: 11016677 | H74: =H72-H73 -> 19178977.21 | I74: 10842427.96 | J74: 11016677 | K74: =K72-K73 -> 0 | L74: =L72-L73 -> 0 | M74: =M72-M73 -> 0

Sheet печать
A1: Согласовано | I1: Утверждаю | M1: 2203
A2: Начальник управления образования | I2: Директор
A3: и молодежной политики
A4: ________________ О.Н.Минашкина | I4: Битнер В.Ф.
A5: " 29 " декабря 2018 г. | I5: "29 " декабря 2018 г. | O5: ФОРМУЛЫ САМОКОНТРОЛЯ
O7: 2017
A8: ПЛАН | O8: =G59-G70+G112 -> 5.064066499e-09 | P8: должно равняться нулю
A9: ФИНАНСОВО-ХОЗЯЙСТВЕННОЙ ДЕЯТЕЛЬНОСТИ | O9: всего | P9: (доход+ остаток на начало года-расход)
A11: на 2018 год и плановый период 2019-2020 гг. (С учетом изменений)
A13: Дата составления " 29 " декабря 2018 г.
A14: Наименование учреждения | F14: Муниципальное бюджетное общеобразовательное учреждение "Средняя общеобразовательная школа № 8" г. Уссурийска Уссурийского городского округа | O14: субсидия МЗ | P14: субсидия БК 78.1 | Q14: субсидии кап.вложения | R14: поступл.от оказ услуг / | S14: гранты /
A15: Наименование органа, осуществляющего функции и полномочия учредителя | F15: Управление образования и молодежной политики администрации Уссурийского городского округа | O15: ='Таблица 2'!I11+'Таблица 2'!I64-'Таблица 2'!I22 -> 0 | P15: ='Таблица 2'!J11+'Таблица 2'!J64-'Таблица 2'!J22 -> 0 | Q15: ='Таблица 2'!K11+'Таблица 2'!K64-'Таблица 2'!K22 -> 0 | R15: ='Таблица 2'!L11+'Таблица 2'!L64-'Таблица 2'!L22 -> 0 | S15: ='Таблица 2'!M11+'Таблица 2'!M64-'Таблица 2'!M22 -> 0 | T15: должно равняться нулю, разница по каждому разделу- пост+ост-расх
A16: Адрес фактического местонахождения | F16: 692502, г. Уссурийск, ул. Владивостокское шоссе, 8
A17: ИНН/КПП, код по реестру участников бюджетного процесса, а так же юридических лиц, не являющихся участниками бюджетного процесса | F17: 2511037540/251101001
A18: Единица измерения | F18: Рубль
A19: Финансовый год (финансовый год и плановый период), на который представлены сведения | F19: 2018 год и плановый период 2019-2020 гг.
A20: Наименование органа, осуществляющего ведение лицевого счета | F20: ,
A21: I. Сведения о деятельности учреждения
A22: 1. Цели и виды деятельности учреждения (указываются в соответствии с нормативными правовыми актами и уставом учреждения) | F22: Цель - формирование общей культуры личности обучающихся на основе усвоения обязательного минимума содержания общеобразовательных программ, их адаптации к жизни в обществе, создания основы для осознанного выбора и последующего освоения профессиональных образовательных программ, воспитания гражданнственности, трудолюбия, уважения к правам и свободам человека, любви к окружающей природе, Родине, семье.
A23: 2. Перечень услуг (работ), относящихся в соответствии с уставом учреждения к основным видам деятельности учреждения, предоставление которых для физических и юридических лиц осуществляется, в том числе за плату | F23: Основным предметом деятельности Учреждения является реализация общеобразовательных программ начального общего, основного общего и среднего (полного) общего образования. Учреждение оказывает на договорной основе обучающимся, населению и организациям платные дополнительные образовательные и физкультурно-оздоровительные и иные услуги, не предусмотренные государственными образовательными стандартами.
A24: 3. Общая балансовая стоимость недвижимого муниципального имущества на дату составления Плана, в том числе: | F24: ='Таблица 1'!E8 -> 32373778.81
A25: стоимость имущества, закрепленного собственником имущества за учреждением на праве оперативного управления; | F25: ='Таблица 1'!E9 -> 32373778.81
A26: стоимость имущества, приобретенного учреждением за счет выделенных собственником имущества учреждения средств; | F26: ='Таблица 1'!E10 -> 0
A27: стоимость имущества, приобретенного учреждением за счет доходов, полученных от иной приносящей доход деятельности | F27: ='Таблица 1'!E11 -> 0
A28: 4. Общая балансовая стоимость движимого муниципального имущества на дату составления Плана, в том числе: | F28: ='Таблица 1'!E12 -> 12461980.14
A29: балансовая стоимость особо ценного движимого имущества | F29: ='Таблица 1'!E13 -> 4670449.08
A30: II. Показатели финансового состояния учреждения
A31: на 01 января 2018 г.
F32: (последнюю отчетную дату)
A33: № п/п | B33: Наименование показателя | F33: Сумма, руб.
A34: 1 | B34: 2 | F34: 3
A35: 1 | B35: Нефинансовые активы, всего: | F35: ='Таблица 1'!E18 -> 88514662.46
A36: 1.1. | B36: из них: недвижимое имущество, всего: | F36: ='Таблица 1'!E19 -> 32373778.81
A37: 1.1.1. | B37: в том числе: остаточная стоимость | F37: ='Таблица 1'!E20 -> 19683183.72
A38: 1.2. | B38: особо ценное движимое имущество, всего: | F38: ='Таблица 1'!E21 -> 4670449.08
A39: 1.2.1. | B39: в том числе: остаточная стоимость | F39: ='Таблица 1'!E22 -> 149547.84
A40: 2 | B40: Финансовые активы, всего: | F40: ='Таблица 1'!E23 -> -87304198.2
A41: 2.1. | B41: из них: денежные средства учреждения ,всего: | F41: ='Таблица 1'!E24 -> 385703.57
A42: 2.1.1. | B42: в том числе: денежные средства учреждения на счетах | F42: ='Таблица 1'!E25 -> 385703.57
A43: 2.2. | B43: денежные средства учреждения, размещенные на депозиты в кредитной организации | F43: ='Таблица 1'!E26 -> 0
A44: 2.3. | B44: иные финансовые инструменты | F44: ='Таблица 1'!E27 -> 0
A45: 2.4. | B45: дебиторская задолженность по доходам | F45: ='Таблица 1'!E28 -> 69409.56
A46: 2.5. | B46: дебиторская задолженность по расходам | F46: ='Таблица 1'!E29 -> 70787.71
A47: 3. | B47: Обязательства, всего: | F47: ='Таблица 1'!E30 -> 120100.6
A48: 3.1. | B48: из них: долговые обязательства | F48: ='Таблица 1'!E31 -> 0
A49: 3.2. | B49: кредиторская задолженность: | F49: ='Таблица 1'!E32 -> 67848.17
A50: 3.2.1. | B50: в том числе: просроченная кредиторская задолженность | F50: ='Таблица 1'!E33 -> 0
A51: III. Показатели по поступлениям и выплатам учреждения
A53: на 01 января 2018 года
A54: Наименование показателя | E54: Код строки | F54: Код вида расходов Российской Федерации | G54: Объем финансового обеспечения, руб. ( с точностью до двух знаков после запятой-0,00)
G55: Всего | H55: в том числе:
H56: Субсидия на финансовое обеспечение выполнения муниципального задания | I56: Субсидии, предоставляемые в соответствии с абзацем пункта 1 статьи 78.1 Бюджетного кодекса Российской Федерации | J56: Субсидии на осуществление капитальных вложений | K56: поступления от оказания услуг (выполнения работ) на платной основе и от иной приносящей доход деятельности
K57: всего | L57: из них гранты
A58: 1 | E58: 2 | F58: 3 | H58: 5 | I58: 6 | J58: 7 | K58: 8 | L58: 9
A59: ПОСТУПЛЕНИЯ ОТ ДОХОДОВ,ВСЕГО: | E59: 100 | F59: х | G59: ='Таблица 2'!H11 -> 54589807.34 | H59: ='Таблица 2'!I11 -> 42466398.45 | I59: ='Таблица 2'!J11 -> 9877322.82 | J59: ='Таблица 2'!K11 -> 0 | K59: ='Таблица 2'!L11 -> 2246086.07 | L59: ='Таблица 2'!M11 -> 0
A60: в том числе: доходы от собственности | E60: 110 | G60: ='Таблица 2'!H12 -> 0 | H60: ='Таблица 2'!I12 -> 0 | I60: ='Таблица 2'!J12 -> 0 | J60: ='Таблица 2'!K12 -> 0 | K60: ='Таблица 2'!L12 -> 0 | L60: ='Таблица 2'!M12 -> 0
A61: доходы от оказания услуг, работ | E61: 120 | G61: ='Таблица 2'!H13 -> 42466398.45 | H61: ='Таблица 2'!I13 -> 42466398.45 | I61: ='Таблица 2'!J13 -> 0 | J61: ='Таблица 2'!K13 -> 0 | K61: ='Таблица 2'!L13 -> 0 | L61: ='Таблица 2'!M13 -> 0
A62: доходы от штрафов, пеней иных сумм принудительного изъятия | E62: 130 | G62: ='Таблица 2'!H14 -> 18648.2 | H62: ='Таблица 2'!I14 -> 0 | I62: ='Таблица 2'!J14 -> 0 | J62: ='Таблица 2'!K14 -> 0 | K62: ='Таблица 2'!L14 -> 18648.2 | L62: ='Таблица 2'!M14 -> 0
A63: безвозмездные поступления от наднациональных организаций, правительств иностранных государств, международных финансовых организаций | E63: 140 | G63: ='Таблица 2'!H15 -> 0 | H63: ='Таблица 2'!I15 -> 0 | I63: ='Таблица 2'!J15 -> 0 | J63: ='Таблица 2'!K15 -> 0 | K63: ='Таблица 2'!L15 -> 0 | L63: ='Таблица 2'!M15 -> 0
A64: иные субсидии, предоставленные из бюджета | E64: 150 | G64: ='Таблица 2'!H16 -> 9877322.82 | H64: ='Таблица 2'!I16 -> 0 | I64: ='Таблица 2'!J16 -> 9877322.82 | J64: ='Таблица 2'!K16 -> 0 | K64: ='Таблица 2'!L16 -> 0 | L64: ='Таблица 2'!M16 -> 0
A65: прочие доходы | E65: 160 | G65: ='Таблица 2'!H17 -> 2227437.87 | H65: ='Таблица 2'!I17 -> 0 | I65: ='Таблица 2'!J17 -> 0 | J65: ='Таблица 2'!K17 -> 0 | K65: ='Таблица 2'!L17 -> 2227437.87 | L65: ='Таблица 2'!M17 -> 0
A66: в том числе родительская плата | E66: 161 | G66: ='Таблица 2'!H18 -> 1336203.07 | H66: ='Таблица 2'!I18 -> 0 | I66: ='Таблица 2'!J18 -> 0 | J66: ='Таблица 2'!K18 -> 0 | K66: ='Таблица 2'!L18 -> 1336203.07 | L66: ='Таблица 2'!M18 -> 0
A67: платные услуги | E67: 162 | G67: ='Таблица 2'!H19 -> 855263 | H67: ='Таблица 2'!I19 -> 0 | I67: ='Таблица 2'!J19 -> 0 | J67: ='Таблица 2'!K19 -> 0 | K67: ='Таблица 2'!L19 -> 855263 | L67: ='Таблица 2'!M19 -> 0
A68: добровольные пожертвования | E68: 163 | G68: ='Таблица 2'!H20 -> 35971.8 | H68: ='Таблица 2'!I20 -> 0 | I68: ='Таблица 2'!J20 -> 0 | J68: ='Таблица 2'!K20 -> 0 | K68: ='Таблица 2'!L20 -> 35971.8 | L68: ='Таблица 2'!M20 -> 0
A69: доходы от операций с активами | E69: 180 | G69: ='Таблица 2'!H21 -> 0 | H69: ='Таблица 2'!I21 -> 0 | I69: ='Таблица 2'!J21 -> 0 | J69: ='Таблица 2'!K21 -> 0 | K69: ='Таблица 2'!L21 -> 0 | L69: ='Таблица 2'!M21 -> 0
A70: ВЫПЛАТЫ ПО РАСХОДАМ,ВСЕГО: | E70: 200 | F70: х | G70: ='Таблица 2'!H22 -> 55019614.9 | H70: ='Таблица 2'!I22 -> 42466398.45 | I70: ='Таблица 2'!J22 -> 9877322.82 | J70: ='Таблица 2'!K22 -> 0 | K70: ='Таблица 2'!L22 -> 2675893.63 | L70: ='Таблица 2'!M22 -> 0
A71: в том числе на: выплаты персоналу всего: | E71: 210 | F71: ='Таблица 2'!D23 ->  | G71: ='Таблица 2'!H23 -> 33778278.52 | H71: ='Таблица 2'!I23 -> 33006613 | I71: ='Таблица 2'!J23 -> 0 | J71: ='Таблица 2'!K23 -> 0 | K71: ='Таблица 2'!L23 -> 771665.52 | L71: ='Таблица 2'!M23 -> 0
A72: из них: оплата труда и начисления на выплаты по оплате труда | E72: 211 | F72: ='Таблица 2'!D24 ->  | G72: ='Таблица 2'!H24 -> 33778278.52 | H72: ='Таблица 2'!I24 -> 33006613 | I72: ='Таблица 2'!J24 -> 0 | J72: ='Таблица 2'!K24 -> 0 | K72: ='Таблица 2'!L24 -> 771665.52 | L72: ='Таблица 2'!M24 -> 0
A73: из них: оплата труда | F73: 111 | G73: ='Таблица 2'!H25 -> 25794859.44 | H73: ='Таблица 2'!I25 -> 25362656.37 | I73: ='Таблица 2'!J25 -> 0 | J73: ='Таблица 2'!K25 -> 0 | K73: ='Таблица 2'!L25 -> 432203.07 | L73: ='Таблица 2'!M25 -> 0
A74: начисления на выплаты по оплате труда | F74: 119 | G74: ='Таблица 2'!H26 -> 7983419.08 | H74: ='Таблица 2'!I26 -> 7643956.63 | I74: ='Таблица 2'!J26 -> 0 | J74: ='Таблица 2'!K26 -> 0 | K74: ='Таблица 2'!L26 -> 339462.45 | L74: ='Таблица 2'!M26 -> 0
A75: Социальные и иные выплаты населению, всего | E75: 220 | F75: ='Таблица 2'!D27 ->  | G75: ='Таблица 2'!H27 -> 15695.6 | H75: ='Таблица 2'!I27 -> 11070 | I75: ='Таблица 2'!J27 -> 0 | J75: ='Таблица 2'!K27 -> 0 | K75: ='Таблица 2'!L27 -> 4625.6 | L75: ='Таблица 2'!M27 -> 0
A76: из них: прочие выплаты | F76: ='Таблица 2'!D28 -> 112 | G76: ='Таблица 2'!H28 -> 15695.6 | H76: ='Таблица 2'!I28 -> 11070 | I76: ='Таблица 2'!J28 -> 0 | J76: ='Таблица 2'!K28 -> 0 | K76: ='Таблица 2'!L28 -> 4625.6 | L76: ='Таблица 2'!M28 -> 0
A77: прочие расходы (иные выплаты персоналу учреждений, за исключением фонда оплаты труда) | F77: ='Таблица 2'!D29 -> 112 | G77: ='Таблица 2'!H29 -> 0 | H77: ='Таблица 2'!I29 -> 0 | I77: ='Таблица 2'!J29 -> 0 | J77: ='Таблица 2'!K29 -> 0 | K77: ='Таблица 2'!L29 -> 0 | L77: ='Таблица 2'!M29 -> 0
A78: транспортные услуги | F78: ='Таблица 2'!D30 -> 112 | G78: ='Таблица 2'!H30 -> 0 | H78: ='Таблица 2'!I30 -> 0 | I78: ='Таблица 2'!J30 -> 0 | J78: ='Таблица 2'!K30 -> 0 | K78: ='Таблица 2'!L30 -> 0 | L78: ='Таблица 2'!M30 -> 0
A79: прочие услуги | F79: ='Таблица 2'!D31 -> 112 | G79: ='Таблица 2'!H31 -> 0 | H79: ='Таблица 2'!I31 -> 0 | I79: ='Таблица 2'!J31 -> 0 | J79: ='Таблица 2'!K31 -> 0 | K79: ='Таблица 2'!L31 -> 0 | L79: ='Таблица 2'!M31 -> 0
A80: Уплату налогов, сборов и иных платежей, всего | E80: 230 | F80: ='Таблица 2'!D32 ->  | G80: ='Таблица 2'!H32 -> 0 | H80: ='Таблица 2'!I32 -> 0 | I80: ='Таблица 2'!J32 -> 0 | J80: ='Таблица 2'!K32 -> 0 | K80: ='Таблица 2'!L32 -> 0 | L80: ='Таблица 2'!M32 -> 0
A81: безвозмездные перечисления организациям | E81: 240 | F81: ='Таблица 2'!D33 ->  | G81: ='Таблица 2'!H33 -> 0 | H81: ='Таблица 2'!I33 -> 0 | I81: ='Таблица 2'!J33 -> 0 | J81: ='Таблица 2'!K33 -> 0 | K81: ='Таблица 2'!L33 -> 0 | L81: ='Таблица 2'!M33 -> 0
A82: Прочие расходы (кроме расходов на закупку товаров, работ, услуг) | E82: 250 | F82: ='Таблица 2'!D34 ->  | G82: ='Таблица 2'!H34 -> 1197871.12 | H82: ='Таблица 2'!I34 -> 1063722 | I82: ='Таблица 2'!J34 -> 131799.12 | J82: ='Таблица 2'!K34 -> 0 | K82: ='Таблица 2'!L34 -> 2350 | L82: ='Таблица 2'!M34 -> 0
A83: прочие расходы (питание спортсменов) | F83: ='Таблица 2'!D35 -> 113 | G83: ='Таблица 2'!H35 -> 0 | H83: ='Таблица 2'!I35 -> 0 | I83: ='Таблица 2'!J35 -> 0 | J83: ='Таблица 2'!K35 -> 0 | K83: ='Таблица 2'!L35 -> 0 | L83: ='Таблица 2'!M35 -> 0
A84: прочие расходы (трудоустройство несовершеннолетних граждан(трудовые бригады) | F84: ='Таблица 2'!D36 -> 360 | G84: ='Таблица 2'!H36 -> 131799.12 | H84: ='Таблица 2'!I36 -> 0 | I84: ='Таблица 2'!J36 -> 131799.12 | J84: ='Таблица 2'!K36 -> 0 | K84: ='Таблица 2'!L36 -> 0 | L84: ='Таблица 2'!M36 -> 0
A85: прочие расходы (возмещение истцу расходов на государственную пошлину и уплата неустойки, оплата расходов на экспертизу судебным актом, возмещение ущерба должностным лицом по суду) | F85: ='Таблица 2'!D37 -> 831 | G85: ='Таблица 2'!H37 -> 0 | H85: ='Таблица 2'!I37 -> 0 | I85: ='Таблица 2'!J37 -> 0 | J85: ='Таблица 2'!K37 -> 0 | K85: ='Таблица 2'!L37 -> 0 | L85: ='Таблица 2'!M37 -> 0
A86: прочие расходы (уплата налога на имущество организаций, земельного налога) | F86: ='Таблица 2'!D38 -> 851 | G86: ='Таблица 2'!H38 -> 1063722 | H86: ='Таблица 2'!I38 -> 1063722 | I86: ='Таблица 2'!J38 -> 0 | J86: ='Таблица 2'!K38 -> 0 | K86: ='Таблица 2'!L38 -> 0 | L86: ='Таблица 2'!M38 -> 0
A87: ='Таблица 2'!B39 -> прочие расходы(уплата трансп.налога,госпошлина учр.-ответчика по реш.суда) | F87: ='Таблица 2'!D39 -> 852 | G87: ='Таблица 2'!H39 -> 2350 | H87: ='Таблица 2'!I39 -> 0 | I87: ='Таблица 2'!J39 -> 0 | J87: ='Таблица 2'!K39 -> 0 | K87: ='Таблица 2'!L39 -> 2350 | L87: ='Таблица 2'!M39 -> 0
A88: ='Таблица 2'!B40 -> уплата иных платежей(в т.ч. за несвоевремен.упл.налогов и сборов,плата за загрязн.окр.среды) | F88: ='Таблица 2'!D40 -> 853 | G88: ='Таблица 2'!H40 -> 0 | H88: ='Таблица 2'!I40 -> 0 | I88: ='Таблица 2'!J40 -> 0 | J88: ='Таблица 2'!K40 -> 0 | K88: ='Таблица 2'!L40 -> 0 | L88: ='Таблица 2'!M40 -> 0
A89: Расходы на закупку товаров, работ, услуг ,всего | E89: 260 | F89: х | G89: ='Таблица 2'!H41 -> 20027769.66 | H89: ='Таблица 2'!I41 -> 8384993.45 | I89: ='Таблица 2'!J41 -> 9745523.7 | J89: ='Таблица 2'!K41 -> 0 | K89: ='Таблица 2'!L41 -> 1897252.51 | L89: ='Таблица 2'!M41 -> 0
A90: Закупка товаров, работ, услуг на капитальный ремонт государственного (муниципального) имущества | E90: 261 | F90: ='Таблица 2'!D42 ->  | G90: ='Таблица 2'!H42 -> 7379974 | H90: ='Таблица 2'!I42 -> 0 | I90: ='Таблица 2'!J42 -> 7379974 | J90: ='Таблица 2'!K42 -> 0 | K90: ='Таблица 2'!L42 -> 0 | L90: ='Таблица 2'!M42 -> 0
A91: услуги по содержанию имущества | F91: ='Таблица 2'!D43 -> 243 | G91: ='Таблица 2'!H43 -> 7379974 | H91: ='Таблица 2'!I43 -> 0 | I91: ='Таблица 2'!J43 -> 7379974 | J91: ='Таблица 2'!K43 -> 0 | K91: ='Таблица 2'!L43 -> 0 | L91: ='Таблица 2'!M43 -> 0
A92: прочие услуги | F92: ='Таблица 2'!D44 -> 243 | G92: ='Таблица 2'!H44 -> 0 | H92: ='Таблица 2'!I44 -> 0 | I92: ='Таблица 2'!J44 -> 0 | J92: ='Таблица 2'!K44 -> 0 | K92: ='Таблица 2'!L44 -> 0 | L92: ='Таблица 2'!M44 -> 0
A93: Затраты на на строительство объектов недвижимого имущества государственными (муниципальными) учреждениями | E93: 262 | G93: ='Таблица 2'!H45 -> 0 | H93: ='Таблица 2'!I45 -> 0 | I93: ='Таблица 2'!J45 -> 0 | J93: ='Таблица 2'!K45 -> 0 | K93: ='Таблица 2'!L45 -> 0 | L93: ='Таблица 2'!M45 -> 0
A94: прочие услуги | F94: ='Таблица 2'!D46 -> 407 | G94: ='Таблица 2'!H46 -> 0 | H94: ='Таблица 2'!I46 -> 0 | I94: ='Таблица 2'!J46 -> 0 | J94: ='Таблица 2'!K46 -> 0 | K94: ='Таблица 2'!L46 -> 0 | L94: ='Таблица 2'!M46 -> 0
A95: приобретение основных средств | F95: ='Таблица 2'!D47 -> 407 | G95: ='Таблица 2'!H47 -> 0 | H95: ='Таблица 2'!I47 -> 0 | I95: ='Таблица 2'!J47 -> 0 | J95: ='Таблица 2'!K47 -> 0 | K95: ='Таблица 2'!L47 -> 0 | L95: ='Таблица 2'!M47 -> 0
A96: Прочая закупка товаров, работ и услуг для обеспечения государственных (муниципальных) нужд | E96: 263 | F96: ='Таблица 2'!D48 ->  | G96: ='Таблица 2'!H48 -> 12647795.66 | H96: ='Таблица 2'!I48 -> 8384993.45 | I96: ='Таблица 2'!J48 -> 2365549.7 | J96: ='Таблица 2'!K48 -> 0 | K96: ='Таблица 2'!L48 -> 1897252.51 | L96: ='Таблица 2'!M48 -> 0
A97: услуги связи | F97: ='Таблица 2'!D49 -> 244 | G97: ='Таблица 2'!H49 -> 96449.05 | H97: ='Таблица 2'!I49 -> 58880.05 | I97: ='Таблица 2'!J49 -> 0 | J97: ='Таблица 2'!K49 -> 0 | K97: ='Таблица 2'!L49 -> 37569 | L97: ='Таблица 2'!M49 -> 0
A98: транспортные услуги | F98: ='Таблица 2'!D50 -> 244 | G98: ='Таблица 2'!H50 -> 1135600 | H98: ='Таблица 2'!I50 -> 1135600 | I98: ='Таблица 2'!J50 -> 0 | J98: ='Таблица 2'!K50 -> 0 | K98: ='Таблица 2'!L50 -> 0 | L98: ='Таблица 2'!M50 -> 0
A99: коммунальные услуги | F99: ='Таблица 2'!D51 -> 244 | G99: ='Таблица 2'!H51 -> 3985820.53 | H99: ='Таблица 2'!I51 -> 3950936.53 | I99: ='Таблица 2'!J51 -> 0 | J99: ='Таблица 2'!K51 -> 0 | K99: ='Таблица 2'!L51 -> 34884 | L99: ='Таблица 2'!M51 -> 0
A100: арендная плата за пользование имущества | F100: ='Таблица 2'!D52 -> 244 | G100: ='Таблица 2'!H52 -> 0 | H100: ='Таблица 2'!I52 -> 0 | I100: ='Таблица 2'!J52 -> 0 | J100: ='Таблица 2'!K52 -> 0 | K100: ='Таблица 2'!L52 -> 0 | L100: ='Таблица 2'!M52 -> 0
A101: услуги по содержанию имущества | F101: ='Таблица 2'!D53 -> 244 | G101: ='Таблица 2'!H53 -> 558455.64 | H101: ='Таблица 2'!I53 -> 497625 | I101: ='Таблица 2'!J53 -> 20638.64 | J101: ='Таблица 2'!K53 -> 0 | K101: ='Таблица 2'!L53 -> 40192 | L101: ='Таблица 2'!M53 -> 0
A102: прочие услуги | F102: ='Таблица 2'!D54 -> 244 | G102: ='Таблица 2'!H54 -> 413140.47 | H102: ='Таблица 2'!I54 -> 336381.47 | I102: ='Таблица 2'!J54 -> 48000 | J102: ='Таблица 2'!K54 -> 0 | K102: ='Таблица 2'!L54 -> 28759 | L102: ='Таблица 2'!M54 -> 0
A103: прочие расходы (призы,кубки) | F103: ='Таблица 2'!D55 -> 244 | G103: ='Таблица 2'!H55 -> 396 | H103: ='Таблица 2'!I55 -> 396 | I103: ='Таблица 2'!J55 -> 0 | J103: ='Таблица 2'!K55 -> 0 | K103: ='Таблица 2'!L55 -> 0 | L103: ='Таблица 2'!M55 -> 0
A104: приобретение основных средств | F104: ='Таблица 2'!D56 -> 244 | G104: ='Таблица 2'!H56 -> 1779830.4 | H104: ='Таблица 2'!I56 -> 1613988.4 | I104: ='Таблица 2'!J56 -> 0 | J104: ='Таблица 2'!K56 -> 0 | K104: ='Таблица 2'!L56 -> 165842 | L104: ='Таблица 2'!M56 -> 0
A105: приобретение материальных запасов | F105: ='Таблица 2'!D57 -> 244 | G105: ='Таблица 2'!H57 -> 4678103.57 | H105: ='Таблица 2'!I57 -> 791186 | I105: ='Таблица 2'!J57 -> 2296911.06 | J105: ='Таблица 2'!K57 -> 0 | K105: ='Таблица 2'!L57 -> 1590006.51 | L105: ='Таблица 2'!M57 -> 0
A106: Поступление финансовых активов, всего: | E106: 300 | F106: ='Таблица 2'!D58 -> х | G106: ='Таблица 2'!H58 -> 0 | H106: ='Таблица 2'!I58 -> 0 | I106: ='Таблица 2'!J58 -> 0 | J106: ='Таблица 2'!K58 -> 0 | K106: ='Таблица 2'!L58 -> 0 | L106: ='Таблица 2'!M58 -> 0
A107: из них: увеличение остатков средств | E107: 310 | F107: ='Таблица 2'!D59 ->  | G107: ='Таблица 2'!H59 -> 0 | H107: ='Таблица 2'!I59 -> 0 | I107: ='Таблица 2'!J59 -> 0 | J107: ='Таблица 2'!K59 -> 0 | K107: ='Таблица 2'!L59 -> 0 | L107: ='Таблица 2'!M59 -> 0
A108: Прочие поступления | E108: 320 | F108: ='Таблица 2'!D60 ->  | G108: ='Таблица 2'!H60 -> 0 | H108: ='Таблица 2'!I60 -> 0 | I108: ='Таблица 2'!J60 -> 0 | J108: ='Таблица 2'!K60 -> 0 | K108: ='Таблица 2'!L60 -> 0 | L108: ='Таблица 2'!M60 -> 0
A109: Выбытие финансовых активов, всего | E109: 400 | F109: ='Таблица 2'!D61 ->  | G109: ='Таблица 2'!H61 -> 0 | H109: ='Таблица 2'!I61 -> 0 | I109: ='Таблица 2'!J61 -> 0 | J109: ='Таблица 2'!K61 -> 0 | K109: ='Таблица 2'!L61 -> 0 | L109: ='Таблица 2'!M61 -> 0
A110: из них: уменьшение остатков средств | E110: 410 | F110: ='Таблица 2'!D62 ->  | G110: ='Таблица 2'!H62 -> 0 | H110: ='Таблица 2'!I62 -> 0 | I110: ='Таблица 2'!J62 -> 0 | J110: ='Таблица 2'!K62 -> 0 | K110: ='Таблица 2'!L62 -> 0 | L110: ='Таблица 2'!M62 -> 0
A111: прочие выбытия | E111: 420 | F111: ='Таблица 2'!D63 ->  | G111: ='Таблица 2'!H63 -> 0 | H111: ='Таблица 2'!I63 -> 0 | I111: ='Таблица 2'!J63 -> 0 | J111: ='Таблица 2'!K63 -> 0 | K111: ='Таблица 2'!L63 -> 0 | L111: ='Таблица 2'!M63 -> 0
A112: Остаток средств на начало года | E112: 500 | F112: ='Таблица 2'!D64 -> х | G112: ='Таблица 2'!H64 -> 429807.56 | H112: ='Таблица 2'!I64 -> 0 | I112: ='Таблица 2'!J64 -> 0 | J112: ='Таблица 2'!K64 -> 0 | K112: ='Таблица 2'!L64 -> 429807.56 | L112: ='Таблица 2'!M64 -> 0
A113: Остаток средств на конец года | E113: 600 | F113: ='Таблица 2'!D65 -> х | G113: ='Таблица 2'!H65 -> 0 | H113: ='Таблица 2'!I65 -> 0 | I113: ='Таблица 2'!J65 -> 0 | J113: ='Таблица 2'!K65 -> 0 | K113: ='Таблица 2'!L65 -> 0 | L113: ='Таблица 2'!M65 -> 0
A114: IV. Показатели по поступлениям и выплатам учреждения
A115: на 01 января 2018 года
A116: Наименование показателя | B116: Код строки | C116: Код бюджетной классификации Российской Федерации | D116: Сумма выплат по расходам на закупку товаров, работ и услуг, руб. ( с точностью до двух знаков после запятой-0,00)
D117: всего на закупки | G117: в том числе:
G118: Федеральным законом от 05 апреля 2013 года №44-ФЗ "О контрактной системе в сфере закупок товаров ,работ, услуг для обеспечения государственных и муниципальных нужд" | J118: в соответствии с Федеральным законом от 18 июля 2011 года №223-ФЗ "О закупках товаров, работ, услуг отдельными видами юридических лиц"
D119: на 2018 г. очередной финансовый год | E119: на 2019 г. 1-ый год планового периода | F119: на 2020 г. 2-ый год планового периода | G119: на 2018 г. очередной финансовый год | H119: на 2019 г. 1-ый год планового периода | I119: на 2020 г. 2-ый год планового периода | J119: на 2018 г. очередной финансовый год | K119: на 2019 г. 1-ый год планового периода | L119: на 2020 г. 2-ый год планового периода
A120: 1 | B120: 2 | C120: 3 | D120: 4 | E120: 5 | F120: 6 | G120: 7 | H120: 8 | I120: 9 | J120: 10 | K120: 11 | L120: 12
A121: Выплаты по расходам на закупку товаров, работ ,услуг, всего: | B121: 0001 | C121: х | D121: ='Таблица 2'!E72 -> 20027769.66 | E121: ='Таблица 2'!F72 -> 11691220.41 | F121: ='Таблица 2'!G72 -> 11865469.45 | G121: ='Таблица 2'!H72 -> 20027769.66 | H121: ='Таблица 2'!I72 -> 11691220.41 | I121: ='Таблица 2'!J72 -> 11865469.45 | J121: ='Таблица 2'!K72 -> 0 | K121: ='Таблица 2'!L72 -> 0 | L121: ='Таблица 2'!M72 -> 0
A122: в том числе: на оплату контрактов заключенных до начала очередного финансового года : | B122: 1001 | C122: х | D122: ='Таблица 2'!E73 -> 848792.45 | E122: ='Таблица 2'!F73 -> 848792.45 | F122: ='Таблица 2'!G73 -> 848792.45 | G122: ='Таблица 2'!H73 -> 848792.45 | H122: ='Таблица 2'!I73 -> 848792.45 | I122: ='Таблица 2'!J73 -> 848792.45 | J122: ='Таблица 2'!K73 -> 0 | K122: ='Таблица 2'!L73 -> 0 | L122: ='Таблица 2'!M73 -> 0
A123: на закупку товаров работ, услуг погоду начала закупки: | B123: 2001 | D123: ='Таблица 2'!E74 -> 19178977.21 | E123: ='Таблица 2'!F74 -> 10842427.96 | F123: ='Таблица 2'!G74 -> 11016677 | G123: ='Таблица 2'!H74 -> 19178977.21 | H123: ='Таблица 2'!I74 -> 10842427.96 | I123: ='Таблица 2'!J74 -> 11016677 | J123: ='Таблица 2'!K74 -> 0 | K123: ='Таблица 2'!L74 -> 0 | L123: ='Таблица 2'!M74 -> 0
A124: V.Сведения о средствах, поступившых во временное распоряжение учреждения
A126: на 01 января 2018 год
A127: (очередной финансовый год)
A128: Наименование показателя | F128: Код строки | I128: Сумма ( руб. с точностью до двух знаков после запятой-0,00)
A129: 1 | F129: 2 | I129: 3
A130: Остаток средств на начало года | F130: 010 | I130: ='Таблица 1'!E38 -> 0
A131: Остаток средств наконец года | F131: 020 | I131: ='Таблица 1'!E39 -> 0
A132: Поступление | F132: 030 | I132: ='Таблица 1'!E40 -> 0
A133: Выбытие | F133: 040 | I133: ='Таблица 1'!E41 -> 0
A134: VI. Справочная информация
A136: Наименование показателя | F136: Код строки | I136: Сумма ( руб. с точностью до двух знаков после запятой-0,00)
A137: 1 | F137: 2 | I137: 3
A138: Объем публичных обязательств, всего: | F138: 010 | I138: ='Таблица 1'!E44 -> 419723
A139: Объем бюджетных инвестиций (в части переданных полномочий муниципального заказчика в соответствии с Бюджетным кодексом Российской Федерации),всего: | F139: 020 | I139: ='Таблица 1'!E45 -> 0
A140: Объем средств, поступивших во временное распоряжение ,всего | F140: 030 | I140: ='Таблица 1'!E46 -> 0
A142: Директор | F142: Битнер В.Ф.
A144: Заместитель директора по финансам | F144: Абрамчук С.С.
A147: Исполнитель | F147: Абрамчук С.С.
A149: Согласовано:
A151: Начальник финансово-экономического
A152: отдела | H152: Н.А. Вялкова
A154: Директор МКУ
A155: Центр обслуживания
H156: И.Ю. Щербак
A158: Начальник отдела планирования
A159: и анализа МКУ
A160: Центр обслуживания
H161: Е.Е. Гончар
A182: Заключение
B183: на обоснованность расчетов, приведенных в пояснительной записке к Плану финансово-хозяйственной деятельности на 2018 год и плановый период 2019-2020 годов, и соответствия показателей в информации о планируемых объемах расходных обязательств по учреждению:
B184: =F14 -> Муниципальное бюджетное общеобразовательное учреждение "Средняя общеобразовательная школа № 8" г. Уссурийска Уссурийского городского округа
B186: наименование учреждения
B188: Планируемые объемы расходных обязательств по учреждению:
C190: Наименование показателя | H190: Очередной финансовый год 2018г.
C192: Поступления, всего: | H192: ='Таблица 2'!H11 -> 54589807.34
C193: в том числе:
C194: доходы от собственности | H194: ='Таблица 2'!H12 -> 0
C195: доходы от оказания услуг, работ | H195: ='Таблица 2'!H13 -> 42466398.45
C196: доходы от штрафов, пеней иных сумм принудительного изъятия | H196: ='Таблица 2'!H14 -> 18648.2
C197: безвозмездные поступления от наднациональных организаций, правительств иностранных государств, международных финансовых организаций | H197: ='Таблица 2'!H15 -> 0
C198: иные субсидии, предоставленные из бюджета | H198: ='Таблица 2'!H16 -> 9877322.82
C199: прочие доходы | H199: ='Таблица 2'!H17 -> 2227437.87
C200: в том числе родительская плата | H200: ='Таблица 2'!H18 -> 1336203.07
C201: платные услуги | H201: ='Таблица 2'!H19 -> 855263
C202: добровольные пожертвования | H202: ='Таблица 2'!H20 -> 35971.8
C203: доходы от операций с активами | H203: ='Таблица 2'!H21 -> 0
C204: Расходы, всего | H204: ='Таблица 2'!H22 -> 55019614.9
B207: План финансово-хозяйственной деятельности на 2018 год и плановый период 2019-2020 годов (далее - План) по учреждению
B208: =F14 -> Муниципальное бюджетное общеобразовательное учреждение "Средняя общеобразовательная школа № 8" г. Уссурийска Уссурийского городского округа
B210: наименование учреждения
B211: разработан в соответствии с действующим Порядком, утвержденным постановлением администрации Уссурийского городского округа от 08.07.2011г. №1658-НПА.
B212: Расчеты, приведенные в пояснительной записке, соответствуют информации о планируемых объемах расходных обязательств. Расчеты обоснованны и экономически целесообразны.
B216: Начальник финансово-экономического отдела управления образования и молодежной политики | K216: Н.А. Вялкова
B218: Директор МКУ Центр обслуживания | K218: И.Ю. Щербак
J220: ___________ 20 ___ г.
B221: Е.Е. Гончар
B222: 32-43-35
